Workbook

Sheet INCLINAÇÃO
B2: 10.8 | C2: VAR CDI | D2: =B2+H4/100 -> 10.8 | E2: DU | F2: =NETWORKDAYS($D$4,D12,Feriado)-1 -> 19 | G2: VAR | H2: =(1+D2/100)^(F2/252) -> 1.007762414
C4: Inicio | D4: 2014-06-27 | H4: 0
B6: =NETWORKDAYS($D$4,C6,Feriado)-1 -> 133 | C6: 2015-01-02 | D6: 10.79714147 | E6: =TRUNC(100000/((1+D6/100)^(B6/252)),6) -> 94732.46056 | N6: =D6 -> 10.79714147 | O6: =D14 -> 10.8
B7: =NETWORKDAYS($D$4,C7,Feriado)-1 -> 383 | C7: 2016-01-04 | D7: 11.17912665 | E7: =TRUNC(100000/((1+D7/100)^(B7/252)),6) -> 85123.98624 | N7: =D7 -> 11.17912665 | O7: =D15 -> 11.2
B8: =NETWORKDAYS($D$4,C8,Feriado)-1 -> 634 | C8: 2017-01-02 | D8: 11.42986302 | E8: =TRUNC(100000/((1+D8/100)^(B8/252)),6) -> 76164.0363 | N8: =D8 -> 11.42986302 | O8: =D16 -> 11.45
B9: =NETWORKDAYS($D$4,C9,Feriado)-1 -> 758 | C9: 2017-07-03 | D9: 11.53063522 | E9: =TRUNC(100000/((1+D9/100)^(B9/252)),6) -> 72018.04512 | N9: =D9 -> 11.53063522 | O9: =D17 -> 11.55
B10: =NETWORKDAYS($D$4,C10,Feriado)-1 -> 883 | C10: 2018-01-02 | D10: 11.58229345 | E10: =TRUNC(100000/((1+D10/100)^(B10/252)),6) -> 68112.62803 | N10: =D10 -> 11.58229345 | O10: =D18 -> 11.6
C12: Fim | D12: 2014-07-24
B14: =NETWORKDAYS($D$12,C14,Feriado)-1 -> 114 | C14: 2015-01-02 | D14: =J14+$K$14/100 -> 10.8 | E14: =TRUNC(100000/((1+D14/100)^(B14/252)),6) -> 95466.5132 | G14: =E6*$H$2 -> 95467.81311 | H14: =((100000/G14)^(252/B14)-1)*100 -> 10.79666505 | J14: 10.8 | K14: 0
B15: =NETWORKDAYS($D$12,C15,Feriado)-1 -> 364 | C15: 2016-01-04 | D15: =J15+$K$15/100 -> 11.2 | E15: =TRUNC(100000/((1+D15/100)^(B15/252)),6) -> 85783.58583 | G15: =E7*$H$2 -> 85784.75384 | H15: =((100000/G15)^(252/B15)-1)*100 -> 11.19895181 | J15: 11.2 | K15: 0
A16: AJUSTE | B16: =NETWORKDAYS($D$12,C16,Feriado)-1 -> 615 | C16: 2017-01-02 | D16: =J16+$K$16/100 -> 11.45 | E16: =TRUNC(100000/((1+D16/100)^(B16/252)),6) -> 76754.20951 | G16: =E8*$H$2 -> 76755.25306 | H16: =((100000/G16)^(252/B16)-1)*100 -> 11.44937911 | J16: 11.45 | K16: 0
A17: =B18/B17 -> 1.169147497 | B17: =NETWORKDAYS($D$12,C17,Feriado)-1 -> 739 | C17: 2017-07-03 | D17: =J17+$K$17/100 -> 11.55 | E17: =TRUNC(100000/((1+D17/100)^(B17/252)),6) -> 72576.09361 | G17: =E9*$H$2 -> 72577.07898 | H17: =((100000/G17)^(252/B17)-1)*100 -> 11.54948355 | J17: 11.55 | K17: 0
A18: =D31/D32 -> 1.057337636 | B18: =NETWORKDAYS($D$12,C18,Feriado)-1 -> 864 | C18: 2018-01-02 | D18: =J18+$K$18/100 -> 11.6 | E18: =TRUNC(100000/((1+D18/100)^(B18/252)),6) -> 68640.41557 | G18: =E10*$H$2 -> 68641.34643 | H18: =((100000/G18)^(252/B18)-1)*100 -> 11.59955858 | J18: 11.6 | K18: 0
A19: =A17/A18 -> 1.1057466
B20: C OU V
B21: DT 2 | C21: DT 1 | D21: Ajuste | E21: Dif
A22: C | B22: =E14 -> 95466.5132 | C22: =G14 -> 95467.81311 | D22: =IF(A22= "C",-B22+C22,B22-C22) -> 1.299912691 | E22: =D14-H14 -> 0.003334947373
A23: C | B23: =E15 -> 85783.58583 | C23: =G15 -> 85784.75384 | D23: =IF(A23= "C",-B23+C23,B23-C23) -> 1.168002862 | E23: =D15-H15 -> 0.001048186229
A24: C | B24: =E16 -> 76754.20951 | C24: =G16 -> 76755.25306 | D24: =IF(A24= "C",-B24+C24,B24-C24) -> 1.043549588 | E24: =D16-H16 -> 0.0006208863013
A25: C | B25: =E17 -> 72576.09361 | C25: =G17 -> 72577.07898 | D25: =IF(A25= "C",-B25+C25,B25-C25) -> 0.9853708408 | E25: =D17-H17 -> 0.0005164489729
A26: C | B26: =E18 -> 68640.41557 | C26: =G18 -> 68641.34643 | D26: =IF(A26= "C",-B26+C26,B26-C26) -> 0.9308536611 | E26: =D18-H18 -> 0.0004414163019
H28: VENDER INCLINAÇÃO | M28: COMRAR INCLINAÇÃO
B29: C+V | H29: C | J29: LONGO | M29: V | O29: LONGO
C30: DT 2 | D30: DT 1 | E30: Ajuste
A31: CURTO | B31: C | C31: =E17 -> 72576.09361 | D31: =G17 -> 72577.07898 | E31: =IF(B31= "C",-C31+D31,C31-D31)*A19 -> 1.089570457 | F31: X AJUSTE
A32: LONGO | B32: V | C32: =E18 -> 68640.41557 | D32: =G18 -> 68641.34643 | E32: =IF(B32= "C",-C32+D32,C32-D32) -> -0.9308536611
E33: =E31+E32 -> 0.158716796 | G33: CURTO | J33: V | L33: CURTO | O33: C
C34: =D18-D17 -> 0.05 | D34: =H18-H17 -> 0.05007503267 | I34: DIF | N34: DIF
H35: DIF > 0 (-) | I35: =C34-D34 -> -7.503267103e-05 | J35: DIF < 0 (+) | M35: DIF > 0 (+) | N35: =C34-D34 -> -7.503267103e-05 | O35: DIF < 0 (-)
B37: C + 2V + C
C39: DT 2 | D39: DT 1 | H39: VENDER CURVATURA | N39: COMPRAR CURVATURA
A40: X1 | B40: V | C40: =E15 -> 85783.58583 | D40: =G15 -> 85784.75384 | E40: =IF(B40= "C",-C40+D40,C40-D40) -> -1.168002862 | H40: C | J40: X2 | K40: C | N40: V | P40: X2 | Q40: V
A41: X2 | B41: C | C41: =E16 -> 76754.20951 | D41: =G16 -> 76755.25306 | E41: =IF(B41= "C",-C41+D41,C41-D41)/E50 -> 0.9687057953 | F41: DIV AJUSTE
A42: X3 | B42: V | C42: =E17 -> 72576.09361 | D42: =G17 -> 72577.07898 | E42: =IF(B42= "C",-C42+D42,C42-D42) -> -0.9853708408 | H42: X1
E43: =E40+2*E41+E42 -> -0.2159621125 | J43: 2 * V | L43: X3 | N43: X1 | P43: 2 * C | R43: X3
C45: =-D15+2*D16-D17 -> 0.15 | D45: =-D7+2*D8-D9 -> 0.149964164 | I45: DIF | O45: DIF
H46: DIF > 0 (-) | I46: =C45-D45 -> 3.583598445e-05 | J46: DIF < 0 (+) | N46: DIF > 0 (+) | O46: =C45-D45 -> 3.583598445e-05 | P46: DIF < 0 (-)
C47: PU | D47: DU
C48: =D40+D42 -> 158361.8328 | D48: =B7+B9 -> 1141
C49: =2*D41 -> 153510.5061 | D49: =2*B8 -> 1268 | E49: AJUSTE
C50: =C48/C49 -> 1.031602571 | D50: =D49/D48 -> 1.111305872 | E50: =D50/C50 -> 1.077261634

Sheet FERIADOS
A1: 2009-01-01 | B1: 2009-02-23 | C1: 2009-02-24 | D1: 2009-04-10 | E1: 2009-04-21 | F1: 2009-05-01 | G1: 2009-06-11 | H1: 2009-09-07 | I1: 2009-10-12 | J1: 2009-11-02 | K1: 2009-11-15 | L1: 2009-12-25
A2: 2010-01-01 | B2: 2010-02-15 | C2: 2010-02-16 | D2: 2010-04-02 | E2: 2010-04-21 | F2: 2010-05-01 | G2: 2010-06-03 | H2: 2010-09-07 | I2: 2010-10-12 | J2: 2010-11-02 | K2: 2010-11-15 | L2: 2010-12-25
A3: 2011-01-01 | B3: 2011-03-07 | C3: 2011-03-08 | D3: 2011-04-21 | E3: 2011-04-22 | F3: 2011-05-01 | G3: 2011-06-23 | H3: 2011-09-07 | I3: 2011-10-12 | J3: 2011-11-02 | K3: 2011-11-15 | L3: 2011-12-25
A4: 2012-01-01 | B4: 2012-02-20 | C4: 2012-02-21 | D4: 2012-04-06 | E4: 2012-04-21 | F4: 2012-05-01 | G4: 2012-06-07 | H4: 2012-09-07 | I4: 2012-10-12 | J4: 2012-11-02 | K4: 2012-11-15 | L4: 2012-12-25
A5: 2013-01-01 | B5: 2013-02-11 | C5: 2013-02-12 | D5: 2013-03-29 | E5: 2013-04-21 | F5: 2013-05-01 | G5: 2013-05-30 | H5: 2013-09-07 | I5: 2013-10-12 | J5: 2013-11-02 | K5: 2013-11-15 | L5: 2013-12-25
A6: 2014-01-01 | B6: 2014-03-03 | C6: 2014-03-04 | D6: 2014-04-18 | E6: 2014-04-21 | F6: 2014-05-01 | G6: 2014-06-19 | H6: 2014-09-07 | I6: 2014-10-12 | J6: 2014-11-02 | K6: 2014-11-15 | L6: 2014-12-25
A7: 2015-01-01 | B7: 2015-02-16 | C7: 2015-02-17 | D7: 2015-04-03 | E7: 2015-04-21 | F7: 2015-05-01 | G7: 2015-06-04 | H7: 2015-09-07 | I7: 2015-10-12 | J7: 2015-11-02 | K7: 2015-11-15 | L7: 2015-12-25
A8: 2016-01-01 | B8: 2016-02-08 | C8: 2016-02-09 | D8: 2016-03-25 | E8: 2016-04-21 | F8: 2016-05-01 | G8: 2016-05-26 | H8: 2016-09-07 | I8: 2016-10-12 | J8: 2016-11-02 | K8: 2016-11-15 | L8: 2016-12-25
A9: 2017-01-01 | B9: 2017-02-27 | C9: 2017-02-28 | D9: 2017-04-14 | E9: 2017-04-21 | F9: 2017-05-01 | G9: 2017-06-15 | H9: 2017-09-07 | I9: 2017-10-12 | J9: 2017-11-02 | K9: 2017-11-15 | L9: 2017-12-25
A10: 2018-01-01 | B10: 2018-02-12 | C10: 2018-02-13 | D10: 2018-03-30 | E10: 2018-04-21 | F10: 2018-05-01 | G10: 2018-05-31 | H10: 2018-09-07 | I10: 2018-10-12 | J10: 2018-11-02 | K10: 2018-11-15 | L10: 2018-12-25
A11: 2019-01-01 | B11: 2019-03-04 | C11: 2019-03-05 | D11: 2019-04-19 | E11: 2019-04-21 | F11: 2019-05-01 | G11: 2019-06-20 | H11: 2019-09-07 | I11: 2019-10-12 | J11: 2019-11-02 | K11: 2019-11-15 | L11: 2019-12-25
A12: 2020-01-01 | B12: 2020-02-24 | C12: 2020-02-25 | D12: 2020-04-10 | E12: 2020-04-21 | F12: 2020-05-01 | G12: 2020-06-11 | H12: 2020-09-07 | I12: 2020-10-12 | J12: 2020-11-02 | K12: 2020-11-15 | L12: 2020-12-25
A13: 2021-01-01 | B13: 2021-02-15 | C13: 2021-02-16 | D13: 2021-04-02 | E13: 2021-04-21 | F13: 2021-05-01 | G13: 2021-06-03 | H13: 2021-09-07 | I13: 2021-10-12 | J13: 2021-11-02 | K13: 2021-11-15 | L13: 2021-12-25
A14: 2022-01-01 | B14: 2022-02-28 | C14: 2022-03-01 | D14: 2022-04-15 | E14: 2022-04-21 | F14: 2022-05-01 | G14: 2022-06-16 | H14: 2022-09-07 | I14: 2022-10-12 | J14: 2022-11-02 | K14: 2022-11-15 | L14: 2022-12-25
A15: 2023-01-01 | B15: 2023-02-20 | C15: 2023-02-21 | D15: 2023-04-07 | E15: 2023-04-21 | F15: 2023-05-01 | G15: 2023-06-08 | H15: 2023-09-07 | I15: 2023-10-12 | J15: 2023-11-02 | K15: 2023-11-15 | L15: 2023-12-25
A16: 2024-01-01 | B16: 2024-02-12 | C16: 2024-02-13 | D16: 2024-03-29 | E16: 2024-04-21 | F16: 2024-05-01 | G16: 2024-05-30 | H16: 2024-09-07 | I16: 2024-10-12 | J16: 2024-11-02 | K16: 2024-11-15 | L16: 2024-12-25
A17: 2025-01-01 | B17: 2025-03-03 | C17: 2025-03-04 | D17: 2025-04-18 | E17: 2025-04-21 | F17: 2025-05-01 | G17: 2025-06-19 | H17: 2025-09-07 | I17: 2025-10-12 | J17: 2025-11-02 | K17: 2025-11-15 | L17: 2025-12-25
A18: 2026-01-01 | B18: 2026-02-16 | C18: 2026-02-17 | D18: 2026-04-03 | E18: 2026-04-21 | F18: 2026-05-01 | G18: 2026-06-04 | H18: 2026-09-07 | I18: 2026-10-12 | J18: 2026-11-02 | K18: 2026-11-15 | L18: 2026-12-25
A19: 2027-01-01 | B19: 2027-02-08 | C19: 2027-02-09 | D19: 2027-03-26 | E19: 2027-04-21 | F19: 2027-05-01 | G19: 2027-05-27 | H19: 2027-09-07 | I19: 2027-10-12 | J19: 2027-11-02 | K19: 2027-11-15 | L19: 2027-12-25
A20: 2028-01-01 | B20: 2028-02-28 | C20: 2028-02-29 | D20: 2028-04-14 | E20: 2028-04-21 | F20: 2028-05-01 | G20: 2028-06-15 | H20: 2028-09-07 | I20: 2028-10-12 | J20: 2028-11-02 | K20: 2028-11-15 | L20: 2028-12-25
A21: 2029-01-01 | B21: 2029-02-12 | C21: 2029-02-13 | D21: 2029-03-30 | E21: 2029-04-21 | F21: 2029-05-01 | G21: 2029-05-31 | H21: 2029-09-07 | I21: 2029-10-12 | J21: 2029-11-02 | K21: 2029-11-15 | L21: 2029-12-25
A22: 2030-01-01 | B22: 2030-03-04 | C22: 2030-03-05 | D22: 2030-04-19 | E22: 2030-04-21 | F22: 2030-05-01 | G22: 2030-06-20 | H22: 2030-09-07 | I22: 2030-10-12 | J22: 2030-11-02 | K22: 2030-11-15 | L22: 2030-12-25
A23: 2031-01-01 | B23: 2031-02-24 | C23: 2031-02-25 | D23: 2031-04-11 | E23: 2031-04-21 | F23: 2031-05-01 | G23: 2031-06-12 | H23: 2031-09-07 | I23: 2031-10-12 | J23: 2031-11-02 | K23: 2031-11-15 | L23: 2031-12-25
A24: 2032-01-01 | B24: 2032-02-09 | C24: 2032-02-10 | D24: 2032-03-26 | E24: 2032-04-21 | F24: 2032-05-01 | G24: 2032-05-27 | H24: 2032-09-07 | I24: 2032-10-12 | J24: 2032-11-02 | K24: 2032-11-15 | L24: 2032-12-25
A25: 2033-01-01 | B25: 2033-02-28 | C25: 2033-03-01 | D25: 2033-04-15 | E25: 2033-04-21 | F25: 2033-05-01 | G25: 2033-06-16 | H25: 2033-09-07 | I25: 2033-10-12 | J25: 2033-11-02 | K25: 2033-11-15 | L25: 2033-12-25
A26: 2034-01-01 | B26: 2034-02-20 | C26: 2034-02-21 | D26: 2034-04-07 | E26: 2034-04-21 | F26: 2034-05-01 | G26: 2034-06-08 | H26: 2034-09-07 | I26: 2034-10-12 | J26: 2034-11-02 | K26: 2034-11-15 | L26: 2034-12-25
A27: 2035-01-01 | B27: 2035-02-05 | C27: 2035-02-06 | D27: 2035-03-23 | E27: 2035-04-21 | F27: 2035-05-01 | G27: 2035-05-24 | H27: 2035-09-07 | I27: 2035-10-12 | J27: 2035-11-02 | K27: 2035-11-15 | L27: 2035-12-25
A28: 2036-01-01 | B28: 2036-02-25 | C28: 2036-02-26 | D28: 2036-04-11 | E28: 2036-04-21 | F28: 2036-05-01 | G28: 2036-06-12 | H28: 2036-09-07 | I28: 2036-10-12 | J28: 2036-11-02 | K28: 2036-11-15 | L28: 2036-12-25
A29: 2037-01-01 | B29: 2037-02-16 | C29: 2037-02-17 | D29: 2037-04-03 | E29: 2037-04-21 | F29: 2037-05-01 | G29: 2037-06-04 | H29: 2037-09-07 | I29: 2037-10-12 | J29: 2037-11-02 | K29: 2037-11-15 | L29: 2037-12-25
A30: 2038-01-01 | B30: 2038-03-08 | C30: 2038-03-09 | D30: 2038-04-21 | E30: 2038-04-23 | F30: 2038-05-01 | G30: 2038-06-24 | H30: 2038-09-07 | I30: 2038-10-12 | J30: 2038-11-02 | K30: 2038-11-15 | L30: 2038-12-25
A31: 2039-01-01 | B31: 2039-02-21 | C31: 2039-02-22 | D31: 2039-04-08 | E31: 2039-04-21 | F31: 2039-05-01 | G31: 2039-06-09 | H31: 2039-09-07 | I31: 2039-10-12 | J31: 2039-11-02 | K31: 2039-11-15 | L31: 2039-12-25
A32: 2040-01-01 | B32: 2040-02-13 | C32: 2040-02-14 | D32: 2040-03-30 | E32: 2040-04-21 | F32: 2040-05-01 | G32: 2040-05-31 | H32: 2040-09-07 | I32: 2040-10-12 | J32: 2040-11-02 | K32: 2040-11-15 | L32: 2040-12-25
A33: 2041-01-01 | B33: 2041-03-04 | C33: 2041-03-05 | D33: 2041-04-19 | E33: 2041-04-21 | F33: 2041-05-01 | G33: 2041-06-20 | H33: 2041-09-07 | I33: 2041-10-12 | J33: 2041-11-02 | K33: 2041-11-15 | L33: 2041-12-25
A34: 2042-01-01 | B34: 2042-02-17 | C34: 2042-02-18 | D34: 2042-04-04 | E34: 2042-04-21 | F34: 2042-05-01 | G34: 2042-06-05 | H34: 2042-09-07 | I34: 2042-10-12 | J34: 2042-11-02 | K34: 2042-11-15 | L34: 2042-12-25
A35: 2043-01-01 | B35: 2043-02-09 | C35: 2043-02-10 | D35: 2043-03-27 | E35: 2043-04-21 | F35: 2043-05-01 | G35: 2043-05-28 | H35: 2043-09-07 | I35: 2043-10-12 | J35: 2043-11-02 | K35: 2043-11-15 | L35: 2043-12-25
A36: 2044-01-01 | B36: 2044-02-29 | C36: 2044-03-01 | D36: 2044-04-15 | E36: 2044-04-21 | F36: 2044-05-01 | G36: 2044-06-16 | H36: 2044-09-07 | I36: 2044-10-12 | J36: 2044-11-02 | K36: 2044-11-15 | L36: 2044-12-25
A37: 2045-01-01 | B37: 2045-02-20 | C37: 2045-02-21 | D37: 2045-04-07 | E37: 2045-04-21 | F37: 2045-05-01 | G37: 2045-06-08 | H37: 2045-09-07 | I37: 2045-10-12 | J37: 2045-11-02 | K37: 2045-11-15 | L37: 2045-12-25
A38: 2046-01-01 | B38: 2046-02-05 | C38: 2046-02-06 | D38: 2046-03-23 | E38: 2046-04-21 | F38: 2046-05-01 | G38: 2046-05-24 | H38: 2046-09-07 | I38: 2046-10-12 | J38: 2046-11-02 | K38: 2046-11-15 | L38: 2046-12-25
A39: 2047-01-01 | B39: 2047-02-25 | C39: 2047-02-26 | D39: 2047-04-12 | E39: 2047-04-21 | F39: 2047-05-01 | G39: 2047-06-13 | H39: 2047-09-07 | I39: 2047-10-12 | J39: 2047-11-02 | K39: 2047-11-15 | L39: 2047-12-25
A40: 2048-01-01 | B40: 2048-02-17 | C40: 2048-02-18 | D40: 2048-04-03 | E40: 2048-04-21 | F40: 2048-05-01 | G40: 2048-06-04 | H40: 2048-09-07 | I40: 2048-10-12 | J40: 2048-11-02 | K40: 2048-11-15 | L40: 2048-12-25
A41: 2049-01-01 | B41: 2049-03-01 | C41: 2049-03-02 | D41: 2049-04-16 | E41: 2049-04-21 | F41: 2049-05-01 | G41: 2049-06-17 | H41: 2049-09-07 | I41: 2049-10-12 | J41: 2049-11-02 | K41: 2049-11-15 | L41: 2049-12-25
A42: 2050-01-01 | B42: 2050-02-21 | C42: 2050-02-22 | D42: 2050-04-08 | E42: 2050-04-21 | F42: 2050-05-01 | G42: 2050-06-09 | H42: 2050-09-07 | I42: 2050-10-12 | J42: 2050-11-02 | K42: 2050-11-15 | L42: 2050-12-25
A43: 2051-01-01 | B43: 2051-02-13 | C43: 2051-02-14 | D43: 2051-03-31 | E43: 2051-04-21 | F43: 2051-05-01 | G43: 2051-06-01 | H43: 2051-09-07 | I43: 2051-10-12 | J43: 2051-11-02 | K43: 2051-11-15 | L43: 2051-12-25
A44: 2052-01-01 | B44: 2052-03-04 | C44: 2052-03-05 | D44: 2052-04-19 | E44: 2052-04-21 | F44: 2052-05-01 | G44: 2052-06-20 | H44: 2052-09-07 | I44: 2052-10-12 | J44: 2052-11-02 | K44: 2052-11-15 | L44: 2052-12-25
A45: 2053-01-01 | B45: 2053-02-17 | C45: 2053-02-18 | D45: 2053-04-04 | E45: 2053-04-21 | F45: 2053-05-01 | G45: 2053-06-05 | H45: 2053-09-07 | I45: 2053-10-12 | J45: 2053-11-02 | K45: 2053-11-15 | L45: 2053-12-25
A46: 2054-01-01 | B46: 2054-02-09 | C46: 2054-02-10 | D46: 2054-03-27 | E46: 2054-04-21 | F46: 2054-05-01 | G46: 2054-05-28 | H46: 2054-09-07 | I46: 2054-10-12 | J46: 2054-11-02 | K46: 2054-11-15 | L46: 2054-12-25
A47: 2055-01-01 | B47: 2055-03-01 | C47: 2055-03-02 | D47: 2055-04-16 | E47: 2055-04-21 | F47: 2055-05-01 | G47: 2055-06-17 | H47: 2055-09-07 | I47: 2055-10-12 | J47: 2055-11-02 | K47: 2055-11-15 | L47: 2055-12-25
A48: 2056-01-01 | B48: 2056-02-14 | C48: 2056-02-15 | D48: 2056-03-31 | E48: 2056-04-21 | F48: 2056-05-01 | G48: 2056-06-01 | H48: 2056-09-07 | I48: 2056-10-12 | J48: 2056-11-02 | K48: 2056-11-15 | L48: 2056-12-25
A49: 2057-01-01 | B49: 2057-03-05 | C49: 2057-03-06 | D49: 2057-04-20 | E49: 2057-04-21 | F49: 2057-05-01 | G49: 2057-06-21 | H49: 2057-09-07 | I49: 2057-10-12 | J49: 2057-11-02 | K49: 2057-11-15 | L49: 2057-12-25
A50: 2058-01-01 | B50: 2058-02-25 | C50: 2058-02-26 | D50: 2058-04-12 | E50: 2058-04-21 | F50: 2058-05-01 | G50: 2058-06-13 | H50: 2058-09-07 | I50: 2058-10-12 | J50: 2058-11-02 | K50: 2058-11-15 | L50: 2058-12-25
A51: 2059-01-01 | B51: 2059-02-10 | C51: 2059-02-11 | D51: 2059-03-28 | E51: 2059-04-21 | F51: 2059-05-01 | G51: 2059-05-29 | H51: 2059-09-07 | I51: 2059-10-12 | J51: 2059-11-02 | K51: 2059-11-15 | L51: 2059-12-25
A52: 2060-01-01 | B52: 2060-03-01 | C52: 2060-03-02 | D52: 2060-04-16 | E52: 2060-04-21 | F52: 2060-05-01 | G52: 2060-06-17 | H52: 2060-09-07 | I52: 2060-10-12 | J52: 2060-11-02 | K52: 2060-11-15 | L52: 2060-12-25
A53: 2061-01-01 | B53: 2061-02-21 | C53: 2061-02-22 | D53: 2061-04-08 | E53: 2061-04-21 | F53: 2061-05-01 | G53: 2061-06-09 | H53: 2061-09-07 | I53: 2061-10-12 | J53: 2061-11-02 | K53: 2061-11-15 | L53: 2061-12-25
A54: 2062-01-01 | B54: 2062-02-06 | C54: 2062-02-07 | D54: 2062-03-24 | E54: 2062-04-21 | F54: 2062-05-01 | G54: 2062-05-25 | H54: 2062-09-07 | I54: 2062-10-12 | J54: 2062-11-02 | K54: 2062-11-15 | L54: 2062-12-25
A55: 2063-01-01 | B55: 2063-02-26 | C55: 2063-02-27 | D55: 2063-04-13 | E55: 2063-04-21 | F55: 2063-05-01 | G55: 2063-06-14 | H55: 2063-09-07 | I55: 2063-10-12 | J55: 2063-11-02 | K55: 2063-11-15 | L55: 2063-12-25
A56: 2064-01-01 | B56: 2064-02-18 | C56: 2064-02-19 | D56: 2064-04-04 | E56: 2064-04-21 | F56: 2064-05-01 | G56: 2064-06-05 | H56: 2064-09-07 | I56: 2064-10-12 | J56: 2064-11-02 | K56: 2064-11-15 | L56: 2064-12-25
A57: 2065-01-01 | B57: 2065-02-09 | C57: 2065-02-10 | D57: 2065-03-27 | E57: 2065-04-21 | F57: 2065-05-01 | G57: 2065-05-28 | H57: 2065-09-07 | I57: 2065-10-12 | J57: 2065-11-02 | K57: 2065-11-15 | L57: 2065-12-25
A58: 2066-01-01 | B58: 2066-02-22 | C58: 2066-02-23 | D58: 2066-04-09 | E58: 2066-04-21 | F58: 2066-05-01 | G58: 2066-06-10 | H58: 2066-09-07 | I58: 2066-10-12 | J58: 2066-11-02 | K58: 2066-11-15 | L58: 2066-12-25
A59: 2067-01-01 | B59: 2067-02-14 | C59: 2067-02-15 | D59: 2067-04-01 | E59: 2067-04-21 | F59: 2067-05-01 | G59: 2067-06-02 | H59: 2067-09-07 | I59: 2067-10-12 | J59: 2067-11-02 | K59: 2067-11-15 | L59: 2067-12-25
A60: 2068-01-01 | B60: 2068-03-05 | C60: 2068-03-06 | D60: 2068-04-20 | E60: 2068-04-21 | F60: 2068-05-01 | G60: 2068-06-21 | H60: 2068-09-07 | I60: 2068-10-12 | J60: 2068-11-02 | K60: 2068-11-15 | L60: 2068-12-25
A61: 2069-01-01 | B61: 2069-02-25 | C61: 2069-02-26 | D61: 2069-04-12 | E61: 2069-04-21 | F61: 2069-05-01 | G61: 2069-06-13 | H61: 2069-09-07 | I61: 2069-10-12 | J61: 2069-11-02 | K61: 2069-11-15 | L61: 2069-12-25
A62: 2070-01-01 | B62: 2070-02-10 | C62: 2070-02-11 | D62: 2070-03-28 | E62: 2070-04-21 | F62: 2070-05-01 | G62: 2070-05-29 | H62: 2070-09-07 | I62: 2070-10-12 | J62: 2070-11-02 | K62: 2070-11-15 | L62: 2070-12-25
